Cogmind - Beta 17 @@@ ROGUE MODE // 2026.07.23 @ 17:21:19 Player: Akl Result: Destroyed by S-27 Virus with Autogun Performance ------------- Evolutions (5) 2500 Regions Visited (11) 2200 Robots Destroyed (43) 215 Value Destroyed (1016) 1016 Prototype IDs (1) 20 Alien Tech Used (0) 0 Bonus (0) 0 TOTAL SCORE: 5951 Bonus ------- None Cogmind --------- Core Integrity 0/1000 Matter 295/300 Energy 99/100 System Corruption 0% Temperature Cool (0) Movement Core (100) Ox1 Location -5/Factory Parts ------- > --- POWER (2) -------- (None) > --- PROPULSION (5) --- (None) > --- UTILITY (8) ------ Weight Redist. System Visual Processing Unit Visual Processing Unit Improved Targeting Computer > --- WEAPON (2) ------- Improved Remote Datajack > --- INVENTORY (5) ---- Machine Analyzer Improved Targeting Computer Kinecellerator Force Field Peak State ------------ > --- POWER ------------ Micro Fission Core > --- PROPULSION ------- Cesium-ion Thruster > --- UTILITY ---------- Weight Redist. System Visual Processing Unit Improved Salvage Targeting Computer Improved Targeting Computer Improved Targeting Computer Improved Targeting Computer Advanced Targeting Computer Core Analyzer > --- WEAPON ----------- Wave Gun > --- INVENTORY -------- Micro Nuclear Core Machine Analyzer Improved Targeting Computer Kinecellerator Force Field [Rating: 37] Favorites ----------- Power Light Ion Engine Engine Light Ion Engine Power Core Nuclear Core Propulsion VTOL Module Leg Aluminum Leg Wheel Wheel Flight Unit VTOL Module Utility Improved Targeting Computer Device Structural Scanner Processor Improved Targeting Computer Weapon Light Assault Rifle Energy Gun Wave Gun Ballistic Gun Light Assault Rifle Launcher Missile Launcher Special Weapon Improved Remote Datajack Impact Weapon Heavy Mace Slashing Weapon Tearclaws Build | -11 -10 -10 -9 -8 -7 -7 -7 -6 -6 -6 -5 ------- Run | Yrd Mat Min Mat Mat Fac Low Low Fac Low Low Fac Slots Evolved 10 | . . . 2 2 2 . . 2 . . 2 Power 1 | . . . . . . . . . . . 1 Propulsion 3 | . . . 2 . . . . . . . 1 Utility 6 | . . . . 2 2 . . 2 . . . Weapon . | . . . . . . . . . . . . Parts Attached 77 | 4 3 12 6 18 3 3 1 1 4 10 12 Power 9 | . . 3 1 1 . 1 . . . 2 1 Engine 6 | . . 3 1 . . 1 . . . 1 . Core 3 | . . . . 1 . . . . . 1 1 Reactor . | . . . . . . . . . . . . Propulsion 27 | 2 . 5 3 8 . . . . 3 4 2 Treads . | . . . . . . . . . . . . Leg 6 | 2 . . . 2 . . . . . 2 . Wheel 6 | . . 1 2 2 . . . . . 1 . Hover . | . . . . . . . . . . . . Flight 15 | . . 4 1 4 . . . . 3 1 2 Utility 17 | . 2 1 . 6 2 . . 1 . 1 4 Device 5 | . . . . 3 1 . . . . . 1 Storage . | . . . . . . . . . . . . Processor 12 | . 2 1 . 3 1 . . 1 . 1 3 Hackware . | . . . . . . . . . . . . Protection . | . . . . . . . . . . . . Artifact . | . . . . . . . . . . . . Weapon 24 | 2 1 3 2 3 1 2 1 . 1 3 5 Energy Gun 3 | . . . . . . . . . . . 3 Energy Cannon . | . . . . . . . . . . . . Ballistic Gun 12 | 2 . 3 1 2 1 2 . . 1 . . Ballistic Cannon . | . . . . . . . . . . . . Launcher 3 | . 1 . . 1 . . . . . 1 . Special Weapon 4 | . . . 1 . . . 1 . . . 2 Impact Weapon 1 | . . . . . . . . . . 1 . Slashing Weapon 1 | . . . . . . . . . . 1 . Piercing Weapon . | . . . . . . . . . . . . Special Melee Weapon . | . . . . . . . . . . . . Unidentified Prototypes 1 | . . . . . 1 . . . . . . Parts Lost 47 | . . 4 9 4 . . . . 8 12 10 Power 4 | . . . 1 1 . . . . 1 1 . Propulsion 23 | . . 4 4 2 . . . . 4 6 3 Utility 9 | . . . . . . . . . 1 3 5 Weapon 11 | . . . 4 1 . . . . 2 2 2 Highest Loss Streak 9 | . . 2 5 2 . . . . 8 5 9 To Critical Strikes . | . . . . . . . . . . . . Average Backups 4 | 2 5 4 4 4 3 5 5 4 4 4 4 Power . | 1 1 . . . . . . . . . . Propulsion . | . . . . . . . . . . . . Utility 3 | . 2 2 4 4 3 3 3 2 3 4 3 Weapon . | . 1 1 . . . 1 1 1 . . . Tool/Special . | . . . . . . . . . . . . Unused Backups 14 | . 1 1 . 5 . 2 . 1 . . 4 Power 2 | . 1 1 . . . . . . . . . Propulsion . | . . . . . . . . . . . . Utility 9 | . . . . 5 . . . . . . 4 Weapon 2 | . . . . . . 1 . 1 . . . Tool/Special 1 | . . . . . . 1 . . . . . Average Slot Usage (%) 79 | . 78 90 66 71 99 99 100 99 85 80 47 Engine 3 | . . 10 7 5 . 2 7 6 2 . . Leg 2 | . 28 6 . 4 . . . . . 3 . Wheel 4 | . . . 15 7 7 7 7 6 1 2 . Flight 11 | . . 14 2 4 23 23 23 20 18 9 3 Device 7 | . . . . 5 6 7 7 12 13 11 4 Processor 33 | . 21 28 22 29 38 38 38 40 35 39 34 Ballistic Gun 12 | . 24 27 18 7 15 14 15 13 12 9 . Peak Build Rating 37 | 4 9 11 12 22 25 25 27 30 30 36 37 Average Rating 21 | 2 8 9 10 17 22 24 25 29 26 27 24 On Entrance 17 | . 4 8 10 8 20 23 25 25 30 25 27 Avg Prop Armor Cover (%) 9 | 21 20 21 3 9 5 5 5 5 8 14 . Naked Turns . | . . . . . . . . . . . . Heaviest Build 16 | 3 5 6 5 16 12 13 9 10 10 12 11 Greatest Support 20 | 3 3 10 20 20 12 12 12 12 12 10 8 Greatest Overweight (x) 3 | . 1 1 1 2 . 1 . . 2 2 3 Average Overweight (x) . | . . . . . . . . . . . . Largest Inventory Capacity 5 | 5 5 5 5 5 5 5 5 5 5 5 5 Average Capacity 5 | 5 5 5 5 5 5 5 5 5 5 5 5 Most Carried 5 | 5 5 5 5 5 5 5 5 5 5 5 5 Average Carried 4 | 2 4 4 4 4 3 4 5 4 4 4 4 Final Capacity 5 | 5 5 5 5 5 5 5 5 5 5 5 5 Final Carried 5 | 5 5 5 4 5 5 5 5 5 4 5 4 Class Distribution -------------------- 59% | Scavenger-Mutant 40% | Mutant Dominant Class ---------------- Mutant | -10/Materials Mutant | -10/Mines Mutant | -9/Materials Mutant | -8/Materials Scavenger-Mutant | -7/Factory Scavenger-Mutant | -7/Lower Caves Scavenger-Mutant | -7/Lower Caves Scavenger-Mutant | -6/Factory Scavenger-Mutant | -6/Lower Caves Scavenger-Mutant | -6/Lower Caves Mutant | -5/Factory Resources | -11 -10 -10 -9 -8 -7 -7 -7 -6 -6 -6 -5 ----------- Run | Yrd Mat Min Mat Mat Fac Low Low Fac Low Low Fac Matter Collected 1611 | 268 3 293 76 386 . 97 . . 140 229 119 Remotely . | . . . . . . . . . . . . Salvage Created 1414 | 120 3 153 130 535 . . . . 163 270 40 Parts 98 | 6 1 11 11 40 . . . . 11 16 2 Haulers Intercepted 1 | . . . . 1 . . . . . . . Recyclers Shooed 1 | . . 1 . . . . . . . . . Parts Field Recycled . | . . . . . . . . . . . . Retrieved Matter . | . . . . . . . . . . . . Parts Self-Destructed 26 | . . . . . . . 1 . 7 18 . Prevented . | . . . . . . . . . . . . Parts Restored . | . . . . . . . . . . . . Kills | -11 -10 -10 -9 -8 -7 -7 -7 -6 -6 -6 -5 ------- Run | Yrd Mat Min Mat Mat Fac Low Low Fac Low Low Fac Combat Hostiles Destroyed 33 | . . 11 3 9 . . . . 5 5 . Guns 30 | . . 11 3 7 . . . . 5 4 . AOE 3 | . . . . 2 . . . . . 1 . Classes Destroyed 14 | 2 1 2 3 4 . . . . . 2 . Worker 5 | . . . . 5 . . . . . . . Builder 2 | . . . 1 1 . . . . . . . Tunneler 1 | 1 . . . . . . . . . . . Hauler 1 | . . . . 1 . . . . . . . Recycler 2 | 1 . . . 1 . . . . . . . Minesweeper 1 | . . . . . . . . . . 1 . Operator 1 | . . . . 1 . . . . . . . Watcher 3 | . 1 . . 1 . . . . . . 1 Swarmer 13 | . . 5 . 3 . . . . 4 1 . Grunt 8 | . . . 2 4 . . . . . 2 . Duelist 1 | . . . . 1 . . . . . . . Sentry 4 | . . . 1 1 . . . . 1 1 . Programmer 1 | . . . . . . . . . . 1 . Assembled 6 | . . 6 . . . . . . . . . Best Kill Streak 7 | 2 1 3 3 7 . . . . 3 1 1 Combat Bots Only 3 | . . 3 2 3 . . . . 3 1 . Max Kills in Single Turn 3 | 1 1 1 1 3 . . . . 1 1 1 Gunslinging . | . . . . . . . . . . . . Exploded 1 | . . . . 1 . . . . . 1 . Melee . | . . . . . . . . . . . . Uniques/NPCs Destroyed . | . . . . . . . . . . . . Combat | -11 -10 -10 -9 -8 -7 -7 -7 -6 -6 -6 -5 -------- Run | Yrd Mat Min Mat Mat Fac Low Low Fac Low Low Fac Hostile Shots Fired 453 | . 1 43 62 36 . . . . 64 76 171 Missed 147 | . 1 9 14 5 . . . . 21 19 78 Hits 306 | . . 34 48 31 . . . . 43 57 93 Melee 8 | . . 1 . 3 . . . . . 4 . Projectile 298 | . . 33 48 28 . . . . 43 53 93 AOE 5 | . . 5 . . . . . . . . . Critical Strikes 11 | . . . 4 1 . . . . 1 3 2 Damage Taken 4664 | . . 507 648 491 . . . . 551 1056 1411 Core 2011 | . . 83 208 120 . . . . 108 490 1002 Absorbed by Shields . | . . . . . . . . . . . . Core Remaining (%) 70 | 100 . 66 48 78 . . 100 . . 29 . Volleys Fired 182 | 7 4 32 42 33 . 1 1 . 20 35 7 Largest 2 | 2 1 2 2 2 . 2 1 . 2 2 1 Hottest 100 | 40 33 53 100 43 . 50 5 . 50 43 81 Shots Fired 284 | 14 4 64 60 36 . 2 1 . 29 67 7 Gun 269 | 14 2 63 57 31 . 2 . . 29 66 5 Cannon . | . . . . . . . . . . . . Launcher 9 | . 2 1 . 5 . . . . . 1 . Special 6 | . . . 3 . . . 1 . . . 2 Kinetic 264 | 14 2 63 57 31 . 2 . . 29 66 . Thermal 10 | . . . 3 . . . . . . . 7 Explosive 8 | . 2 1 . 5 . . . . . . . Electromagnetic 1 | . . . . . . . . . . 1 . Robot Hit Streak 24 | 6 1 4 23 13 . . 2 . 16 24 12 Robot Miss Streak 4 | 4 1 3 1 2 . . . . 2 2 1 Penetration Max . | . . . . . . . . . . . . Secondary Targets 2 | . . 2 . . . . . . . . . Max Gunslinging Chain 1 | . . 1 . . . . . . . . . Shots Hit Robots 213 | 8 1 35 51 28 . . 1 . 27 56 6 Core Hits 106 | 3 2 22 12 30 . . . . 12 23 2 Critical Kills 2 | . . 1 . . . . . . . 1 . Critical Parts Destroyed 2 | . . . 1 . . . . . . 1 . Critical Strikes 4 | . . 1 1 . . . . . . 2 . Destroy 4 | . . 1 1 . . . . . . 2 . Melee Attacks . | . . . . . . . . . . . . Impact . | . . . . . . . . . . . . Slashing . | . . . . . . . . . . . . Piercing . | . . . . . . . . . . . . Sneak Attacks . | . . . . . . . . . . . . Combat Hostiles . | . . . . . . . . . . . . Follow-up Attacks . | . . . . . . . . . . . . Damage Inflicted 3245 | 95 106 325 461 1044 . . . . 366 717 131 Guns 2299 | 95 10 300 448 381 . . . . 366 603 96 Cannons . | . . . . . . . . . . . . Explosions 890 | . 96 22 . 663 . . . . . 109 . Melee . | . . . . . . . . . . . . Ramming 21 | . . 3 13 . . . . . . 5 . Kinetic 2203 | 95 10 300 448 381 . . . . 366 603 . Thermal 131 | . . . . . . . . . . . 131 Explosive 781 | . 96 22 . 663 . . . . . . . Electromagnetic 109 | . . . . . . . . . . 109 . Impact . | . . . . . . . . . . . . Slashing . | . . . . . . . . . . . . Piercing . | . . . . . . . . . . . . Highest Corruption 7 | . . 4 . 1 . . . . . 7 . Average Corruption 2 | . . 4 . 1 . . . . . 3 . Corruption Purged . | . . . . . . . . . . . . Corruption Blocked . | . . . . . . . . . . . . Effects 7 | . . 2 . . . . . . . 5 . Message Errors 2 | . . . . . . . . . . 2 . Matter Fused 2 | . . . . . . . . . . 2 . Heat Flow Errors 1 | . . 1 . . . . . . . . . Parts Fused 1 | . . . . . . . . . . 1 . Alerts 1 | . . 1 . . . . . . . . . Overload Shots . | . . . . . . . . . . . . Overflow Damage 3 | . 3 . . . . . . . . . . Projectiles . | . . . . . . . . . . . . Explosions 3 | . 3 . . . . . . . . . . Melee . | . . . . . . . . . . . . Knockbacks . | . . . . . . . . . . . . Impact . | . . . . . . . . . . . . Kinetic . | . . . . . . . . . . . . Secondary . | . . . . . . . . . . . . Self-Inflicted Damage 61 | . . 1 6 34 . . . . . 20 . Shots 2 | . . . . 1 . . . . . 1 . Rammed 3 | . . 1 1 . . . . . . 1 . Targets Rammed 3 | . . 1 1 . . . . . . 1 . Kicked . | . . . . . . . . . . . . Crushed . | . . . . . . . . . . . . Highest Temperature 173 | . . 173 11 25 . 5 . . 14 . 86 Average Temperature 15 | . . 20 3 9 . 4 . . 2 . 32 Received Heat Transfer 931 | . . 40 327 126 . . . . 51 369 18 Siege Activations . | . . . . . . . . . . . . Martial Activations . | . . . . . . . . . . . . Shielding Activations . | . . . . . . . . . . . . Robots Disrupted . | . . . . . . . . . . . . Combat Hostiles . | . . . . . . . . . . . . Robots Corrupted . | . . . . . . . . . . . . Combat Hostiles . | . . . . . . . . . . . . Parts Fried . | . . . . . . . . . . . . Impact Corruptions . | . . . . . . . . . . . . Robots Melted . | . . . . . . . . . . . . Combat Hostiles . | . . . . . . . . . . . . Parts Melted . | . . . . . . . . . . . . Heat Transferred 222 | . . . . . . . . . . . 222 Parts Sabotaged . | . . . . . . . . . . . . Parts Stolen . | . . . . . . . . . . . . Parts Stripped . | . . . . . . . . . . . . Power Chain Reactions . | . . . . . . . . . . . . Alert | -11 -10 -10 -9 -8 -7 -7 -7 -6 -6 -6 -5 ------- Run | Yrd Mat Min Mat Mat Fac Low Low Fac Low Low Fac Maximum Alert Level . | . . . . . . . . . . . . Low Security (%) 100 | 100 100 100 100 100 100 . . 100 . . 100 Level 1 . | . . . . . . . . . . . . Level 2 . | . . . . . . . . . . . . Level 3 . | . . . . . . . . . . . . Level 4 . | . . . . . . . . . . . . Level 5 . | . . . . . . . . . . . . High Security . | . . . . . . . . . . . . Max Security . | . . . . . . . . . . . . Peak Influence 189 | 10 68 70 56 189 79 . . 12 . . 90 Initial 79 | . . 26 . . 79 . . . . . 44 Average 32 | 1 17 15 22 56 62 . . 1 . . 28 Influence Increases 1443 | 10 88 112 128 381 . . . 12 215 310 187 Destroy 0b10 Robot/C 540 | . . 100 60 180 . . . . 100 100 . Destroy 0b10 Robot/NC 80 | 10 5 . 5 50 . . . . . 5 5 Destroy Leader 68 | . 2 10 10 24 . . . . 10 10 2 Successful Hack 73 | . 5 . 20 36 . . . 12 . . . Destroy Structure 52 | . 16 2 3 31 . . . . . . . Partial Spotted 30 | . . . 15 . . . . . . . 15 Lose Combat Pursuer 600 | . 60 . 15 60 . . . . 105 195 165 Influence Decreases 1393 | 10 20 180 128 207 135 39 . 12 215 238 209 Entered New Map 180 | . . 42 . . 95 15 . . . . 28 Time Decay 924 | 10 20 118 60 167 40 24 . 12 155 199 119 Lost Part 289 | . . 20 68 40 . . . . 60 39 62 Squads Dispatched 10 | . . 1 1 . . . . 1 . 1 6 Investigation 3 | . . 1 . . . . . 1 . . 1 Extermination 1 | . . . . . . . . . . . 1 Reinforcement 4 | . . . 1 . . . . . . . 3 Assault 1 | . . . . . . . . . . 1 . Garrison 1 | . . . . . . . . . . . 1 Intercept . | . . . . . . . . . . . . Searches Triggered . | . . . . . . . . . . . . Construction Impeded . | . . . . . . . . . . . . Haulers Reinforced . | . . . . . . . . . . . . Active Scanning Responses . | . . . . . . . . . . . . Cargo Convoy Interrupts . | . . . . . . . . . . . . Stealth | -11 -10 -10 -9 -8 -7 -7 -7 -6 -6 -6 -5 --------- Run | Yrd Mat Min Mat Mat Fac Low Low Fac Low Low Fac Distress Signals 6 | . 2 . . 3 . . . . . . 1 Communications Jammed . | . . . . . . . . . . . . Distress Signals . | . . . . . . . . . . . . Times Spotted 129 | . 4 25 8 17 . . . . 16 27 32 Peak Tracking Total 18 | . 6 18 3 6 . . . . 4 8 12 Tactical Retreats 19 | . 1 1 1 2 . . . . 3 8 3 Traps | -11 -10 -10 -9 -8 -7 -7 -7 -6 -6 -6 -5 ------- Run | Yrd Mat Min Mat Mat Fac Low Low Fac Low Low Fac Traps Triggered 3 | . . . . 1 . . . 1 . . 1 Indirectly . | . . . . . . . . . . . . Trap Hack Attempts . | . . . . . . . . . . . . Triggered . | . . . . . . . . . . . . Disarmed . | . . . . . . . . . . . . Reprogrammed . | . . . . . . . . . . . . Reused . | . . . . . . . . . . . . Traps Extracted . | . . . . . . . . . . . . Installed . | . . . . . . . . . . . . Triggered . | . . . . . . . . . . . . Machines | -11 -10 -10 -9 -8 -7 -7 -7 -6 -6 -6 -5 ---------- Run | Yrd Mat Min Mat Mat Fac Low Low Fac Low Low Fac Machines Disabled . | . . . . . . . . . . . . Max in Single Turn . | . . . . . . . . . . . . Machines Repaired . | . . . . . . . . . . . . Machines Dismantled . | . . . . . . . . . . . . Machines Sabotaged . | . . . . . . . . . . . . Overloaded Fab Kills . | . . . . . . . . . . . . Hacking | -11 -10 -10 -9 -8 -7 -7 -7 -6 -6 -6 -5 --------- Run | Yrd Mat Min Mat Mat Fac Low Low Fac Low Low Fac Machines Accessed 19 | . 3 1 5 5 . 3 . 1 . . 1 Terminals 10 | . 2 . 4 4 . . . . . . . Fabricators . | . . . . . . . . . . . . Repair Stations . | . . . . . . . . . . . . Recycling Units 3 | . 1 . 1 . . . . 1 . . . Scanalyzers 2 | . . . . 1 . . . . . . 1 Garrison Access . | . . . . . . . . . . . . Total Hacks 38 | . 5 1 12 10 . 7 . 1 . . 2 Successful 23 | . 1 1 6 7 . 7 . 1 . . . Failed 15 | . 4 . 6 3 . . . . . . 2 Catastrophic 5 | . 1 . 3 . . . . . . . 1 Database Lockouts . | . . . . . . . . . . . . Manual 3 | . 2 . . . . . . 1 . . . Terminals 19 | . 4 . 9 6 . . . . . . . Fabricators . | . . . . . . . . . . . . Repair Stations . | . . . . . . . . . . . . Recycling Units 5 | . 1 . 3 . . . . 1 . . . Scanalyzers 6 | . . . . 4 . . . . . . 2 Garrison Access . | . . . . . . . . . . . . Terminal Hacks 18 | . 1 1 5 4 . 7 . . . . . Record 6 | . . . . 1 . 5 . . . . . Open Door 3 | . . 1 . . . 2 . . . . . Level Access Points 1 | . . . 1 . . . . . . . . Locate Traps 2 | . . . 1 1 . . . . . . . Recall Investigation 2 | . . . 1 1 . . . . . . . Zone Layout 4 | . 1 . 2 1 . . . . . . . Fabricator Hacks . | . . . . . . . . . . . . Repair Station Hacks . | . . . . . . . . . . . . Recycling Unit Hacks 1 | . . . 1 . . . . . . . . Retrieve Components 1 | . . . 1 . . . . . . . . Scanalyzer 3 | . . . . 3 . . . . . . . Insert Component 2 | . . . . 2 . . . . . . . Analyze 1 | . . . . 1 . . . . . . . Garrison Access Hacks . | . . . . . . . . . . . . Unauthorized Hacks 1 | . . . . . . . . 1 . . . Terminals . | . . . . . . . . . . . . Fabricators . | . . . . . . . . . . . . Repair Stations . | . . . . . . . . . . . . Recycling Units 1 | . . . . . . . . 1 . . . Reject 1 | . . . . . . . . 1 . . . Scanalyzers . | . . . . . . . . . . . . Garrison Access . | . . . . . . . . . . . . Data Cores Recovered . | . . . . . . . . . . . . Used . | . . . . . . . . . . . . Hacking Detections 14 | . 3 . 4 5 . . . 1 . . 1 Full Trace Events 3 | . 1 . . 1 . . . . . . 1 Feedback Events . | . . . . . . . . . . . . Feedback Blocked . | . . . . . . . . . . . . Robot Schematics Acquired . | . . . . . . . . . . . . Robots Built . | . . . . . . . . . . . . Authchips . | . . . . . . . . . . . . Time . | . . . . . . . . . . . . Total Robot Build Rating . | . . . . . . . . . . . . Part Schematics Acquired 1 | . . . . 1 . . . . . . . Parts Built . | . . . . . . . . . . . . Authchips . | . . . . . . . . . . . . Time . | . . . . . . . . . . . . Total Part Build Rating . | . . . . . . . . . . . . Part Studies Acquired . | . . . . . . . . . . . . Parts Repaired . | . . . . . . . . . . . . Time . | . . . . . . . . . . . . Parts Recycled . | . . . . . . . . . . . . Recycled Matter . | . . . . . . . . . . . . Retrieved Matter . | . . . . . . . . . . . . Retrieved Components . | . . . . . . . . . . . . Parts Scanalyzed 1 | . . . . 1 . . . . . . . Part Schematics Acquired 1 | . . . . 1 . . . . . . . Parts Damaged . | . . . . . . . . . . . . Bothacking | -11 -10 -10 -9 -8 -7 -7 -7 -6 -6 -6 -5 ------------ Run | Yrd Mat Min Mat Mat Fac Low Low Fac Low Low Fac Used RIF Installer . | . . . . . . . . . . . . Robots Hacked . | . . . . . . . . . . . . Non-combat . | . . . . . . . . . . . . Combat . | . . . . . . . . . . . . Robot Hacks Applied . | . . . . . . . . . . . . Relay Couplers Released . | . . . . . . . . . . . . Fabnet Peak Effective % . | . . . . . . . . . . . . Robots Rewired . | . . . . . . . . . . . . Allies Hacked . | . . . . . . . . . . . . Hacks Repelled . | . . . . . . . . . . . . Allies | -11 -10 -10 -9 -8 -7 -7 -7 -6 -6 -6 -5 -------- Run | Yrd Mat Min Mat Mat Fac Low Low Fac Low Low Fac Total Allies . | . . . . . . . . . . . . Largest Group . | . . . . . . . . . . . . Highest-Rated Group . | . . . . . . . . . . . . Highest-Rated Ally . | . . . . . . . . . . . . Total Orders . | . . . . . . . . . . . . Ally Attacks . | . . . . . . . . . . . . Total Damage . | . . . . . . . . . . . . Kills . | . . . . . . . . . . . . Allies Corrupted . | . . . . . . . . . . . . Allies Melted . | . . . . . . . . . . . . Intel | -11 -10 -10 -9 -8 -7 -7 -7 -6 -6 -6 -5 ------- Run | Yrd Mat Min Mat Mat Fac Low Low Fac Low Low Fac Active Infowar (turns) 2496 | . . . . 345 84 231 36 68 588 852 292 Optics 2151 | . . . . . 84 231 36 68 588 852 292 Sensors 1460 | . . . . 1 . . . 67 588 804 . Terrain 344 | . . . . 344 . . . . . . . Structural 1722 | . . . . . 83 231 36 68 588 716 . Robot Analysis Total . | . . . . . . . . . . . . Derelict Logs Recovered 5 | . . 2 . . . 1 . . 2 . . Drone Launches . | . . . . . . . . . . . . Drone Recoveries . | . . . . . . . . . . . . Exploration | -11 -10 -10 -9 -8 -7 -7 -7 -6 -6 -6 -5 ------------- Run | Yrd Mat Min Mat Mat Fac Low Low Fac Low Low Fac Turns Passed 3438 | 76 67 398 211 535 84 231 36 68 588 852 292 Spaces Moved 4256 | 76 91 497 140 442 194 563 75 141 725 821 491 Core 1363 | 76 91 139 19 93 . . . . 283 492 170 Treads . | . . . . . . . . . . . . Legs 2 | . . . . 2 . . . . . . . Wheels 632 | . . 16 72 210 . . . . 8 326 . Hover . | . . . . . . . . . . . . Flight 2259 | . . 342 49 137 194 563 75 141 434 3 321 Fastest Speed 29 | 50 50 37 35 39 39 39 39 39 29 35 32 Average Speed 63 | 50 57 54 62 93 39 39 39 39 72 84 45 Slowest Speed 205 | 50 100 120 100 205 39 119 39 39 150 150 200 Overloaded Moves . | . . . . . . . . . . . . Propulsion Burnouts . | . . . . . . . . . . . . Robots Hopped 9 | . . 2 . . 2 . 2 . . . 3 Potential Cave-ins . | . . . . . . . . . . . . Cave-ins Triggered . | . . . . . . . . . . . . Exploration Rate (%) 35 | 4 24 78 19 45 5 75 9 4 74 65 23 Regions Visited 11 Branch Regions 5 Pre-discovered Areas 1 | . . . . . . 1 . . . . . Known Exits Taken 2 | . . 1 1 . . . . . . . . Unknown Exits Taken 9 | 1 1 . . 1 1 1 1 1 1 1 . Scrap Searched 8 | . . 1 . . . 3 . . 1 3 . Spaces Dug 3 | . . . 3 . . . . . . . . Terrain Destroyed 63 | . 16 3 3 41 . . . . . . . Melee . | . . . . . . . . . . . . Projectile 3 | . . . 3 . . . . . . . . AOE 60 | . 16 3 . 41 . . . . . . . Terrain Rammed . | . . . . . . . . . . . . Walls Destroyed . | . . . . . . . . . . . . Machines Disabled . | . . . . . . . . . . . . Actions | -11 -10 -10 -9 -8 -7 -7 -7 -6 -6 -6 -5 --------- Run | Yrd Mat Min Mat Mat Fac Low Low Fac Low Low Fac Total 4734 | 100 100 571 202 529 199 573 77 153 759 923 548 Wait 137 | 6 . 11 9 17 . . . 7 8 53 26 Move 4228 | 75 90 492 139 441 189 562 71 140 724 820 485 Hop 8 | . . 2 . . 2 . 1 . . . 3 Pick Up 37 | 8 1 4 . 10 3 2 . 3 1 1 4 Fast Attach 49 | 1 2 6 5 13 . 1 . . 4 9 8 Attach 23 | 3 . 1 1 4 3 . . 2 1 1 7 Detach 5 | . . . . 1 . . . . . 1 3 Swap 23 | . 2 10 5 1 1 2 2 . . . . Drop 37 | . 1 12 . 9 1 5 . 1 1 2 5 Fire 182 | 7 4 32 42 33 . 1 1 . 20 35 7 Melee . | . . . . . . . . . . . . Ram 3 | . . 1 1 . . . . . . 1 . Kick . | . . . . . . . . . . . . Crush . | . . . . . . . . . . . . Escape Stasis . | . . . . . . . . . . . . Rewire 2 | . . . . . . . 2 . . . . Trap . | . . . . . . . . . . . . Miscellaneous . | . . . . . . . . . . . . Route ------- -11/Scrapyard -10/Materials -10/Mines -9/Materials (discovered 3 exits: *Mat x3) -8/Materials -7/Factory -7/Lower Caves -7/Lower Caves -6/Factory -6/Lower Caves -6/Lower Caves -5/Factory History --------- Turn | Location | Event 18 | -11/Scrapyard | Discovered new exit (range 16) 77 | -11/Scrapyard | Entered Materials 131 | -10/Materials | Discovered new exit (range 15) 144 | -10/Materials | Entered Mines 164 | -10/Mines | Assembled infested the area 169 | -10/Mines | Assisted by a Guerilla fighting off Assembled 171 | -10/Mines | Met a Derelict shopkeep closing up shop 242 | -10/Mines | Learned 2 Materials zone layouts 243 | -10/Mines | Identified exit to Materials 294 | -10/Mines | Received a Rocket Launcher from a helpful Derelict 542 | -10/Mines | Entered Materials 542 | -9/Materials | Evolved 2 slots: Propulsion x2 543 | -9/Materials | Identified exit to Materials 713 | -9/Materials | Lost 5 parts (1p3n1w) 753 | -9/Materials | Core integrity fell below 50% 753 | -9/Materials | Entered another Materials area 753 | -8/Materials | Evolved 2 slots: Utility x2 776 | -8/Materials | Lost 4 parts (1n3w) 796 | -8/Materials | Build established: Mutant 1184 | -8/Materials | Discovered new exit (range 8) 1288 | -8/Materials | Entered Factory 1288 | -7/Factory | Evolved 2 slots: Utility x2 1334 | -7/Factory | Discovered new exit (range 7) 1372 | -7/Factory | Entered Lower Caves 1402 | -7/Lower Caves | Build established: Scavenger-Mutant 1520 | -7/Lower Caves | Entered an active Warlord outpost 1532 | -7/Lower Caves | Learned Research terminal intel 1584 | -7/Lower Caves | Learned Factory stockpile data 1588 | -7/Lower Caves | Discovered new exit (range 9) 1603 | -7/Lower Caves | Entered another Lower Caves area 1606 | -7/Lower Caves | Discovered new exit (range 10) 1639 | -7/Lower Caves | Entered Factory 1639 | -6/Factory | Evolved 2 slots: Utility x2 1662 | -6/Factory | Discovered new exit (range 11) 1707 | -6/Factory | Entered Lower Caves 1709 | -6/Lower Caves | Learned Factory garrison access intel 1764 | -6/Lower Caves | Learned 12 Factory zone layouts 1811 | -6/Lower Caves | Attracted the attention of an 0b10 checkpoint 1934 | -6/Lower Caves | Lost 8 parts (1p4n1u2w) 2277 | -6/Lower Caves | Discovered new exit (range 8) 2285 | -6/Lower Caves | Attracted the attention of an 0b10 base 2295 | -6/Lower Caves | Entered another Lower Caves area 2295 | -6/Lower Caves | Discovered new exit (range 8) 2454 | -6/Lower Caves | Attracted the attention of an 0b10 checkpoint 2977 | -6/Lower Caves | Lost 5 parts (3n2w) 3025 | -6/Lower Caves | Core integrity fell below 50% 3090 | -6/Lower Caves | Attracted the attention of an 0b10 outpost 3147 | -6/Lower Caves | Entered Factory 3147 | -5/Factory | Evolved 2 slots: Power x1, Propulsion x1 3149 | -5/Factory | Loaded intel: 4 garrison access locations 3155 | -5/Factory | Lost 3 parts (1n2u) 3287 | -5/Factory | Build established: Mutant 3297 | -5/Factory | Garrison activated, responded to threat 3359 | -5/Factory | Core integrity fell below 50% 3396 | -5/Factory | Lost 9 parts (3n4u2w) 3416 | -5/Factory | Core integrity fell below 20% 3439 | -5/Factory | Destroyed by S-27 Virus with Autogun Last Messages --------------- 03340_ Acquired 10 matter. 03341_ Acquired VTOL Module. 03343_ Terminal disabled. 03343_ VTOL Module destroyed. 03365_ Imp. Salvage Targeting Computer destroyed. 03368_ K-01 Serf cleans the Nuclear Reactor. 03376_ K-01 Serf cleans the Construction Platform. 03384_ ALERT: Potential suspicious activity detected, Programmers report to Factory Zone 4Y. 03392_ Acquired Imp. Remote Datajack. 03402_ Drone sends a signal. 03410_ Penetrated by Slug. 03424_ K-01 Serf cleans the Nuclear Reactor. 03436_ S-27 Virus destroyed. 03437_ K-01 Serf collects debris. 03438_ Adv. Targeting Computer destroyed. 03439_ K-01 Serf collects debris. Map ----- +----------------------------------------------------+ | """ # """"""""" ######### #?????# ????????? | | """ # #???????# #?????######????????? | | """ # """"""""" #???????# #???????????????????? | | # ######??# #???????????????????? | | # """"""""" + #??#+############????????? | | # # #??# #????????? | | # "T" # #### #????????? | | ############## / #????????? | | # # # """"" #????????? | | # """"""" # s # """"" #????????? | | # """"""" # s k # """ #????????? | | ####### """"""" + + #????????? | | ## """"""" # # #????????? | | """ ## #s # """ #????????? | | """ ## """"""" # # Y" #????????? | | """ ## """"""" # k# """ #????????? | | """ ## """"""" # R # #????????? | | ## """"""" # ##############????????? | | ## # #?????????????????????? | | ####### ???# ##############?# """ | | #???##########???# # #?# """ | | #???##########???# # | ! #?# | | #???# ???# # ! #?###+#### | | #???# """"""" ???# # #?# #T | | #+###?# """"""" ???# # """ """ ### | | ### """"""" ???# @ # """ """ " | | | # # """"""" ???# # """ """ ### | | " ### ???# k# #?# ! ## | | " #?# """"""" / # s# """ """ #?### ###? | | #?# """"""" pp ss%""" """ #???# #??? | | #?# """"""" # k #[""" """ #???# #??? | | ### #?# """"""" ?# # #???# #??? | | ??###?# ??# ######+#####+#???# #??? | | ??????# ! ???# #????# ##### ##### #### | | ??????#+#####+##???# """ | | ??????# #???# ?? "Y" | | ??????# #???# ? """ "?? """ """ """ """ | | ??????# #???# """ ""????? """ """ """ | | ??????# ##### """ ""???????"" """ """ | | ####??# ??? ? | | #??############# ??" "????"" """ """ """ """ | | " #??????????????# ???" "?" """ """ """ """ """ | | " ################ ???? """ """ """ """ """ """ | | " ## ???? | | ????# ???????? | | ??### ???????? ? | | ??? ??????? ?? | | ??? """" ????????? """ """ | | """"""" """" ???????"" """ """ | | """"""" """" ?"????""" """ """ | +----------------------------------------------------+ Best States ------------- Heat Dissipation 40 Energy Generation 15 Energy Capacity 240 Matter Stores 300 Matter Capacity 300 Sight Range 18 Robot Scan Range 15 Terrain Scan Range 16 Terrain Scan Density 85 Evasion (%) 63 Targeting Accuracy 32 Core Analysis 6 Salvage Targeting 2 Item Schematics ----------------- Imp. Targeting Computer | -8/Materials | Scanalyzed Robot Schematics ------------------ None Fabricated ------------ Nothing Repaired ---------- Nothing Studied --------- None Alien Tech Used ----------------- None Achievements -------------- True Hacker Challenges ------------ None Game ------ Seed CompositeSalvageMatter Manual? 0 Play Time 01:02:24 Cumulative 33.0 hours Start 2026.07.23 @ 16:23:23 End 2026.07.23 @ 17:21:19 Sessions 1 Manual Loads 0 Difficulty Rogue Special Mode None Game No. 56 Rogue 56 Adventurer 0 Explorer 0 Win Type - Total 0 Types 0/0/0/0/0/0/0/0/0/0 Lore% 17 Gallery% 28 Achievement% 21 Wizard Run 0 Options --------- Layout 1 ASCII 0 Keyboard 0 Movement Numpad Keybinds 0 Fullscreen 1 Font 24/Smallcaps Map View 50x35 Zoom Use 0% Tactical HUD 1 Map Filters NONE Filters NONE Steam 1 RUN: f149ec36-7e60-4404-ac0d-49c5cd4a2901